fUST/lending_fUST_20251125
["ID","MTS","AMOUNT","RATE_DAILY","PERIOD"]
[394865019,1764029470532,150.33,3.1e-05,2]
[394865020,1764029470841,150.33,3.2e-05,2]
[394865021,1764029471115,150.33,3.3e-05,2]
[394865022,1764029471391,150.33,3.4e-05,2]
[394865023,1764029471664,150.33,3.4e-05,2]
[394865024,1764029504134,159.033,7.71e-05,2]
[394865025,1764029528922,-300.0,7.865e-05,2]
[394865026,1764029528945,-23.19201906,7.865e-05,2]
[394865027,1764029530522,-476.80798094,7.865e-05,2]
[394865028,1764029530557,-546.27981847,7.866e-05,2]
[394865029,1764029530582,-500.0,7.866e-05,2]
[394865030,1764029530606,-500.0,7.866e-05,2]
[394865031,1764029530632,-500.0,7.866e-05,2]
[394865032,1764029530656,-160.84143513,7.866e-05,2]
[394865033,1764029530680,-405.23606053,7.866e-05,2]
[394865034,1764029530704,-160.11187832,7.867e-05,2]
[394865035,1764029530732,-196750.72282661,7.867e-05,2]
[394865036,1764029530968,-282.03627464,7.867e-05,2]
[394865037,1764029532549,-599.99999997,7.867e-05,2]
[394865038,1764029534068,-435.29940294,7.867e-05,2]
[394865039,1764029536284,-468.29337435,7.867e-05,2]
[394865041,1764029537728,-220.13191091,7.867e-05,2]
[394865080,1764029573879,-241.31329154,7.865e-05,2]
[394865082,1764029576337,-91.68670846,7.865e-05,2]
[394865083,1764029576360,-137.13397672,7.866e-05,2]
[394865091,1764029578711,-189.61737878,7.866e-05,2]
[394865092,1764029580246,-300.0,7.865e-05,2]
[394865093,1764029582295,-157.02132684,7.865e-05,2]
[394865094,1764029583806,-203.19679978,7.865e-05,2]
[394865095,1764029586102,-265.11714508,7.865e-05,2]
[394865096,1764029588374,-50.97262388,7.865e-05,2]
[394865097,1764029588399,-183.09579563,7.865e-05,2]
[394865098,1764029590427,-116.90420437,7.865e-05,2]
[394865099,1764029590448,-148.75736393,7.866e-05,2]
[394865100,1764029634429,-342.49350213,7.866e-05,2]
[394865101,1764029636053,-157.50649787,7.866e-05,2]
[394865102,1764029636079,-24.49128057,7.866e-05,2]
[394865103,1764029636108,-125.39150809,7.866e-05,2]
[394865104,1764029638079,-259.00557605,7.866e-05,2]
[394865105,1764029638106,-22.51764479,7.866e-05,2]
[394865106,1764029642260,300.0,7.865e-05,2]
[394865126,1764029664026,-169.87012045,7.866e-05,2]
[394865127,1764029664465,500.0,7.866e-05,2]
[394865128,1764029668224,-307.61223476,7.866e-05,2]
[394865129,1764029668251,-46.11124547,7.866e-05,2]
[394865137,1764029668809,-453.88875453,7.866e-05,2]
[394865138,1764029668841,-500.0,7.866e-05,2]
[394865140,1764029668876,-500.0,7.866e-05,2]
[394865142,1764029668910,-311.61056239,7.866e-05,2]
[394865144,1764029668956,-500.0,7.866e-05,2]
[394865145,1764029668987,-500.0,7.866e-05,2]
[394865146,1764029669028,-546.27981847,7.866e-05,2]
[394865147,1764029669062,-500.0,7.866e-05,2]
[394865148,1764029669098,-500.0,7.866e-05,2]
[394865149,1764029669140,-546.27981847,7.866e-05,2]
[394865151,1764029669563,-476.77055575,7.866e-05,2]
[394865152,1764029669599,-500.0,7.866e-05,2]
[394865153,1764029669634,-500.0,7.866e-05,2]
[394865154,1764029669670,-500.0,7.866e-05,2]
[394865155,1764029669714,-546.27981847,7.866e-05,2]
[394865156,1764029669757,-500.0,7.866e-05,2]
[394865157,1764029669794,-500.0,7.866e-05,2]
[394865158,1764029669838,-546.27981847,7.866e-05,2]
[394865159,1764029669875,-500.0,7.866e-05,2]
[394865160,1764029669921,-315.06979615,7.866e-05,2]
[394865161,1764029670129,-231.21002232,7.866e-05,2]
[394865162,1764029670164,-500.0,7.866e-05,2]
[394865163,1764029670202,-500.0,7.866e-05,2]
[394865164,1764029670243,-546.27981847,7.866e-05,2]
[394865165,1764029670283,-500.0,7.866e-05,2]
[394865166,1764029670316,-623.64986409,7.866e-05,2]
[394865167,1764029670358,-546.27981847,7.866e-05,2]
[394865168,1764029670393,-500.0,7.866e-05,2]
[394865169,1764029670428,-500.0,7.866e-05,2]
[394865170,1764029670470,-546.27981847,7.866e-05,2]
[394865171,1764029670544,-500.0,7.866e-05,2]
[394865172,1764029670581,-500.0,7.866e-05,2]
[394865173,1764029670629,-546.27981847,7.866e-05,2]
[394865174,1764029670663,-500.0,7.866e-05,2]
[394865175,1764029670704,-546.27981847,7.866e-05,2]
[394865176,1764029670741,-500.0,7.866e-05,2]
[394865177,1764029670782,-546.27981847,7.866e-05,2]
[394865178,1764029670815,-500.0,7.866e-05,2]
[394865179,1764029670856,-546.27981847,7.866e-05,2]
[394865180,1764029670895,-129.77145224,7.866e-05,2]
[394865181,1764029670948,-370.22854776,7.866e-05,2]
[394865182,1764029670988,-546.27981847,7.866e-05,2]
[394865183,1764029671022,-500.0,7.866e-05,2]
[394865184,1764029671053,-500.0,7.866e-05,2]
[394865185,1764029671090,-546.27981847,7.866e-05,2]
[394865186,1764029671124,-500.0,7.866e-05,2]
[394865187,1764029671165,-500.0,7.866e-05,2]
[394865188,1764029671205,-546.27981847,7.866e-05,2]
[394865189,1764029671244,-546.27981847,7.866e-05,2]
[394865190,1764029671278,-389.31435672,7.866e-05,2]
[394865191,1764029671410,-110.68564328,7.866e-05,2]
[394865192,1764029671455,-546.27981847,7.866e-05,2]
[394865193,1764029671489,-500.0,7.866e-05,2]
[394865194,1764029671522,-500.0,7.866e-05,2]
[394865195,1764029671562,-546.27981847,7.866e-05,2]
[394865196,1764029671610,-546.27981847,7.866e-05,2]
[394865197,1764029671653,-546.27981847,7.866e-05,2]
[394865198,1764029671696,-546.27981847,7.866e-05,2]
[394865199,1764029671740,-546.27981847,7.866e-05,2]
[394865200,1764029671785,-546.27981847,7.866e-05,2]
[394865201,1764029671938,-546.27981847,7.866e-05,2]
[394865202,1764029671981,-546.27981847,7.866e-05,2]
[394865203,1764029672023,-546.27981847,7.866e-05,2]
[394865204,1764029672068,-546.27981847,7.866e-05,2]
[394865205,1764029672110,-546.27981847,7.866e-05,2]
[394865206,1764029672157,-546.27981847,7.866e-05,2]
[394865207,1764029672199,-546.27981847,7.866e-05,2]
[394865208,1764029672241,-546.27981847,7.866e-05,2]
[394865209,1764029672284,-546.27981847,7.866e-05,2]
[394865210,1764029672636,-546.27981847,7.866e-05,2]
[394865211,1764029672677,-546.27981847,7.866e-05,2]
[394865212,1764029672717,-546.27981847,7.866e-05,2]
[394865213,1764029672756,-546.27981847,7.866e-05,2]
[394865214,1764029672802,-546.27981847,7.866e-05,2]
[394865215,1764029672842,-546.27981847,7.866e-05,2]
[394865216,1764029672881,-546.27981847,7.866e-05,2]
[394865217,1764029672926,-546.27981847,7.866e-05,2]
[394865218,1764029672967,-399.95740513,7.866e-05,2]
[394865219,1764029673054,-459.61809422,7.866e-05,2]
[394865220,1764029673095,-500.0,7.866e-05,2]
[394865221,1764029673140,-859.57549935,7.866e-05,2]
[394865222,1764029673184,-859.57549935,7.866e-05,2]
[394865223,1764029673225,-859.57549935,7.866e-05,2]
[394865224,1764029673274,-859.57549935,7.866e-05,2]
[394865225,1764029673316,-344.59431741,7.866e-05,2]
[394865226,1764029674510,-168.12106932,7.866e-05,2]
[394865227,1764029674841,-346.86011262,7.866e-05,2]
[394865228,1764029674885,-859.57549935,7.866e-05,2]
[394865229,1764029674929,-859.57549935,7.866e-05,2]
[394865230,1764029674976,-859.57549935,7.866e-05,2]
[394865231,1764029675020,-859.57549935,7.866e-05,2]
[394865232,1764029675065,-859.57549935,7.866e-05,2]
[394865233,1764029675299,-859.57549935,7.866e-05,2]
[394865234,1764029675340,-859.57549935,7.866e-05,2]
[394865235,1764029675383,-859.57549935,7.866e-05,2]
[394865236,1764029675424,-859.57549935,7.866e-05,2]
[394865237,1764029675470,-859.57549935,7.866e-05,2]
[394865238,1764029675512,-544.67950715,7.866e-05,2]
[394865239,1764029675750,-314.8959922,7.866e-05,2]
[394865240,1764029675795,-859.57549935,7.866e-05,2]
[394865241,1764029675835,-859.57549935,7.866e-05,2]
[394865242,1764029675875,-859.57549935,7.866e-05,2]
[394865243,1764029675923,-859.57549935,7.866e-05,2]
[394865244,1764029675964,-859.57549935,7.866e-05,2]
[394865245,1764029677358,-346.24013608,7.866e-05,2]
[394865246,1764029677380,-513.33536327,7.866e-05,2]
[394865247,1764029677392,-346.24013608,7.866e-05,2]
[394865248,1764029677413,-513.33536327,7.866e-05,2]
[394865249,1764029677425,-346.24013608,7.866e-05,2]
[394865250,1764029677447,-513.33536327,7.866e-05,2]
[394865251,1764029677458,-346.24013608,7.866e-05,2]
[394865252,1764029677482,-513.33536327,7.866e-05,2]
[394865253,1764029677493,-261.12765883,7.866e-05,2]
[394865254,1764029677940,-306.00892903,7.866e-05,2]
[394865255,1764029679990,-250.12000624,7.866e-05,2]
[394865256,1764029682843,-42.31890525,7.866e-05,2]
[394865257,1764029682875,-207.65526768,7.866e-05,2]
[394865258,1764029683694,-651.92023167,7.866e-05,2]
[394865259,1764029683736,-859.57549935,7.866e-05,2]
[394865260,1764029683779,-859.57549935,7.866e-05,2]
[394865261,1764029683821,-859.57549935,7.866e-05,2]
[394865262,1764029683865,-859.57549935,7.866e-05,2]
[394865263,1764029683908,-859.57549935,7.866e-05,2]
[394865264,1764029684064,-859.57549935,7.866e-05,2]
[394865265,1764029684107,-859.57549935,7.866e-05,2]
[394865266,1764029684154,-859.57549935,7.866e-05,2]
[394865267,1764029684195,-859.57549935,7.866e-05,2]
[394865268,1764029684236,-859.57549935,7.866e-05,2]
[394865269,1764029684279,-544.67950715,7.866e-05,2]
[394865270,1764029684763,-314.8959922,7.866e-05,2]
[394865271,1764029684773,-100.41454316,7.866e-05,2]
[394865272,1764029684821,-166.0487598,7.866e-05,2]
[394865273,1764029685857,-486.02499505,7.866e-05,2]
[394865274,1764029689402,-107.08720134,7.866e-05,2]
[394865275,1764029689437,-59.98825497,7.866e-05,2]
[394865276,1764029691516,-316.62724063,7.866e-05,2]
[394865277,1764029693960,-231.14449367,7.866e-05,2]
[394865278,1764029694823,168.12106932,7.787e-05,2]
[394865279,1764029695465,-251.81551008,7.866e-05,2]
[394865280,1764029695498,-260.69522182,7.866e-05,2]
[394865281,1764029697137,-181.65462226,7.866e-05,2]
[394865282,1764029698663,-163.49035014,7.866e-05,2]
[394865283,1764029701258,300.0,7.865e-05,2]
[394865284,1764029701988,300.0,7.865e-05,2]
[394865285,1764029702028,300.0,7.865e-05,2]
[394865287,1764029702669,3030.67975796,7.787e-05,2]
[394865288,1764029703929,300.0,7.865e-05,2]
[394865289,1764029703966,1200.0,7.865e-05,2]
[394865291,1764029705161,1263.0,0.000111,3]
[394865297,1764029712372,514.34314443,7.862e-05,2]
[394865298,1764029715370,163.094032,7.311e-05,2]
[394865299,1764029715485,163.094032,7.311e-05,120]
[394865312,1764029730229,250.0,7.862e-05,2]
[394865313,1764029730885,250.0,7.862e-05,2]
[394865314,1764029731514,250.0,7.862e-05,2]
[394865315,1764029732182,250.0,7.862e-05,2]
[394865319,1764029732801,250.0,7.862e-05,2]
[394865320,1764029733413,250.0,7.862e-05,2]
[394865321,1764029734014,250.0,7.862e-05,2]
[394865322,1764029734625,250.0,7.862e-05,2]
[394865323,1764029735258,257.14551164,7.862e-05,2]
[394865324,1764029751666,500.0,7.865e-05,2]
[394865325,1764029751962,500.0,7.865e-05,2]
[394865326,1764029753265,466.62648465,7.865e-05,2]
[394865327,1764029753296,33.37351535,7.865e-05,2]
[394865328,1764029753700,500.0,7.865e-05,2]
[394865329,1764029754327,462.36498641,7.865e-05,2]
[394865330,1764029754675,500.0,7.865e-05,2]
[394865331,1764029754937,320.4885649,7.865e-05,2]
[394865332,1764029755336,500.0,7.865e-05,2]
[394865333,1764029755430,-300.0,7.867e-05,2]
[394865334,1764029755647,500.0,7.865e-05,2]
[394865335,1764029756555,500.0,7.865e-05,2]
[394865336,1764029756746,500.0,7.865e-05,2]
[394865337,1764029756990,500.0,7.865e-05,2]
[394865338,1764029757028,-326.88770865,7.867e-05,2]
[394865339,1764029757337,500.0,7.865e-05,2]
[394865340,1764029757687,500.0,7.865e-05,2]
[394865341,1764029758019,500.0,7.865e-05,2]
[394865342,1764029758415,500.0,7.865e-05,2]
[394865343,1764029758956,500.0,7.865e-05,2]
[394865344,1764029759098,500.0,7.865e-05,2]
[394865345,1764029759429,500.0,7.865e-05,2]
[394865346,1764029759758,500.0,7.865e-05,2]
[394865347,1764029760086,500.0,7.865e-05,2]
[394865348,1764029760428,500.0,7.865e-05,2]
[394865349,1764029760771,500.0,7.865e-05,2]
[394865350,1764029761089,183.78293334,7.865e-05,2]
[394865351,1764029761122,316.21706666,7.865e-05,2]
[394865352,1764029761413,500.0,7.865e-05,2]
[394865353,1764029761730,500.0,7.865e-05,2]
[394865354,1764029762072,500.0,7.865e-05,2]
[394865355,1764029762438,500.0,7.865e-05,2]
[394865356,1764029762632,300.0,7.866e-05,2]
[394865357,1764029762782,500.0,7.865e-05,2]
[394865358,1764029763601,500.0,7.865e-05,2]
[394865359,1764029763959,500.0,7.865e-05,2]
[394865360,1764029764776,500.0,7.865e-05,2]
[394865361,1764029765111,500.0,7.865e-05,2]
[394865362,1764029765472,500.0,7.865e-05,2]
[394865363,1764029765831,500.0,7.865e-05,2]
[394865364,1764029766167,500.0,7.865e-05,2]
[394865365,1764029766487,500.0,7.865e-05,2]
[394865366,1764029766858,500.0,7.865e-05,2]
[394865367,1764029767227,500.0,7.865e-05,2]
[394865368,1764029767673,500.0,7.865e-05,2]
[394865369,1764029767991,500.0,7.865e-05,2]
[394865370,1764029768329,500.0,7.865e-05,2]
[394865371,1764029768656,500.0,7.865e-05,2]
[394865372,1764029768982,500.0,7.865e-05,2]
[394865373,1764029769083,626.88770865,7.788e-05,2]
[394865374,1764029769331,500.0,7.865e-05,2]
[394865375,1764029769702,500.0,7.865e-05,2]
[394865376,1764029770032,500.0,7.865e-05,2]
[394865377,1764029770367,373.12229135,7.865e-05,2]
[394865378,1764029770405,126.87770865,7.865e-05,2]
[394865379,1764029770704,500.0,7.865e-05,2]
[394865380,1764029771033,500.0,7.865e-05,2]
[394865381,1764029771366,500.0,7.865e-05,2]
[394865382,1764029771706,500.0,7.865e-05,2]
[394865383,1764029772073,500.0,7.865e-05,2]
[394865384,1764029772401,500.0,7.865e-05,2]
[394865385,1764029772718,500.0,7.865e-05,2]
[394865386,1764029773038,500.0,7.865e-05,2]
[394865387,1764029773364,500.0,7.865e-05,2]
[394865388,1764029773731,500.0,7.865e-05,2]
[394865389,1764029774030,500.0,7.865e-05,2]
[394865390,1764029774368,500.0,7.865e-05,2]
[394865391,1764029774741,500.0,7.865e-05,2]
[394865392,1764029775068,500.0,7.865e-05,2]
[394865393,1764029775419,500.0,7.865e-05,2]
[394865394,1764029806998,191.45028479,7.866e-05,2]
[394865395,1764029822665,300.0,7.866e-05,2]
[394865396,1764029882907,300.0,7.866e-05,2]
[394865397,1764029901449,177.94659003,7.866e-05,2]
[394865398,1764029903195,162.48499849,7.866e-05,2]
[394865399,1764029918970,-300.0,7.867e-05,2]
[394865400,1764029920146,500.0,7.866e-05,2]
[394865401,1764029920201,500.0,7.866e-05,2]
[394865402,1764029920255,500.0,7.866e-05,2]
[394865403,1764029920356,500.0,7.866e-05,2]
[394865404,1764029920411,500.0,7.866e-05,2]
[394865405,1764029920502,500.0,7.866e-05,2]
[394865406,1764029920555,500.0,7.866e-05,2]
[394865407,1764029920606,500.0,7.866e-05,2]
[394865408,1764029920660,500.0,7.866e-05,2]
[394865409,1764029920715,500.0,7.866e-05,2]
[394865410,1764029920784,500.0,7.866e-05,2]
[394865411,1764029920829,500.0,7.866e-05,2]
[394865412,1764029920877,500.0,7.866e-05,2]
[394865413,1764029920926,500.0,7.866e-05,2]
[394865414,1764029920976,500.0,7.866e-05,2]
[394865415,1764029921254,500.0,7.866e-05,2]
[394865416,1764029921298,500.0,7.866e-05,2]
[394865417,1764029921591,368.12812669,7.866e-05,2]
[394865418,1764029921627,64.95538251,7.866e-05,2]
[394865419,1764029921681,500.0,7.866e-05,2]
[394865420,1764029921725,500.0,7.866e-05,2]
[394865421,1764029921796,500.0,7.866e-05,2]
[394865422,1764029922258,300.0,7.788e-05,2]
[394865423,1764029930107,1334.60254444,7.788e-05,2]
[394865424,1764029937881,500.0,7.866e-05,2]
[394865425,1764029937930,500.0,7.866e-05,2]
[394865426,1764029937985,500.0,7.866e-05,2]
[394865427,1764029938079,500.0,7.866e-05,2]
[394865428,1764029938129,433.0835092,7.866e-05,2]
[394865429,1764029938175,500.0,7.866e-05,2]
[394865430,1764029938216,500.0,7.866e-05,2]
[394865431,1764029938261,500.0,7.866e-05,2]
[394865432,1764029938322,500.0,7.866e-05,2]
[394865433,1764029939111,5540.9124942,7.788e-05,2]
[394865434,1764029942612,26.0139966,7.866e-05,2]
[394865435,1764029942641,273.9860034,7.866e-05,2]
[394865436,1764029945443,200.0,8e-05,7]
[394865437,1764029961400,9726.0239966,7.788e-05,2]
[394865438,1764029961428,273.9860034,7.788e-05,2]
[394865439,1764029980171,-189.04362858,7.867e-05,2]
[394865440,1764029982242,-423.3186485,7.867e-05,2]
[394865441,1764029983632,8200.01,7.788e-05,2]
[394865442,1764029985428,-215.34911615,7.867e-05,2]
[394865443,1764029987613,-170.74272771,7.867e-05,2]
[394865444,1764029991991,-275.98327703,7.867e-05,2]
[394865445,1764030005800,8484.50803536,7.788e-05,2]
[394865446,1764030013544,275.98327703,7.787e-05,2]
[394865447,1764030046886,3462.54158782,7.767e-05,2]
[394865448,1764030100207,-300.0,7.766e-05,2]
[394865449,1764030104047,159.034,7.612e-05,2]
[394865450,1764030203940,-200.0,7.766e-05,2]
[394865456,1764030207222,-229.38193032,7.766e-05,2]
[394865468,1764030230246,150.0,7.688e-05,2]
[394865549,1764030454175,1000.0,0.0002,30]
[394865551,1764030477690,1000.0,0.0002,30]
[394865570,1764030493528,1000.0,0.0002,30]
[394865628,1764030544485,200.0,0.0002,30]
[394865629,1764030549451,-300.0,7.765e-05,2]
[394865630,1764030549477,-41.23971693,7.766e-05,2]
[394865631,1764030578637,662.47681253,7.688e-05,2]
[394865632,1764030595378,662.47681253,7.688e-05,2]
[394865633,1764030608967,-154.46720897,7.765e-05,2]
[394865676,1764030638533,-341.23971693,7.762e-05,2]
[394865679,1764030638543,-145.53279103,7.765e-05,2]
[394865681,1764030638553,-1200.0,7.765e-05,2]
[394865682,1764030638563,-1058.0,7.766e-05,2]
[394865684,1764030638575,-500.0,7.766e-05,2]
[394865686,1764030638584,-500.0,7.766e-05,2]
[394865688,1764030638594,-553.53319264,7.766e-05,2]
[394865691,1764030638604,-634.01519936,7.766e-05,2]
[394865692,1764030638619,-167.94449531,7.767e-05,2]
[394865693,1764030638629,-73936.23376827,7.767e-05,2]
[394865694,1764030638641,-444614.98656824,7.767e-05,2]
[394865695,1764030638653,-328278.0083631,7.767e-05,2]
[394865696,1764030638666,-16229.48052914,7.767e-05,2]
[394865697,1764030638678,-23478.74918343,7.767e-05,2]
[394865698,1764030638688,-197.6222349,8.135e-05,2]
[394865699,1764030638698,-153.0,8.14e-05,2]
[394865700,1764030638708,-153.0,8.17e-05,2]
[394865701,1764030638718,-4088.04207117,8.182e-05,2]
[394865702,1764030638727,-2250.2808874,8.188e-05,2]
[394865703,1764030638738,-153.0,8.21e-05,2]
[394865704,1764030638747,-153.0,8.21e-05,2]
[394865705,1764030638757,-153.0,8.21e-05,2]
[394865706,1764030638767,-153.0,8.21e-05,2]
[394865707,1764030638777,-153.0,8.21e-05,2]
[394865708,1764030638787,-153.0,8.21e-05,2]
[394865709,1764030638797,-153.0,8.21e-05,2]
[394865710,1764030638806,-153.0,8.21e-05,2]
[394865711,1764030638816,-153.0,8.21e-05,2]
[394865712,1764030638826,-308.356298,8.21e-05,2]
[394865713,1764030638836,-301.3663093,8.21e-05,2]
[394865714,1764030638845,-153.0,8.21e-05,2]
[394865715,1764030638855,-301.3663093,8.21e-05,2]
[394865716,1764030638865,-153.0,8.21e-05,2]
[394865717,1764030638875,-301.3663093,8.21e-05,2]
[394865718,1764030638887,-608.4074007,8.21e-05,2]
[394865719,1764030638897,-153.0,8.21e-05,2]
[394865720,1764030638908,-475.46915452,8.219e-05,2]
[394865721,1764030638919,-153.0,8.22e-05,2]
[394865722,1764030638929,-153.9051721,8.22e-05,2]
[394865723,1764030638940,-301.3663093,8.22e-05,2]
[394865724,1764030638950,-153.0,8.22e-05,2]
[394865725,1764030638960,-301.3663093,8.22e-05,2]
[394865726,1764030638970,-153.0,8.22e-05,2]
[394865727,1764030638979,-519.8527687,8.22e-05,2]
[394865728,1764030638989,-301.3663093,8.22e-05,2]
[394865729,1764030639000,-594.8582363,8.22e-05,2]
[394865730,1764030639010,-170.048789,8.22e-05,2]
[394865731,1764030639020,-153.0,8.22e-05,2]
[394865732,1764030639029,-301.3663093,8.22e-05,2]
[394865733,1764030639040,-391.7069195,8.22e-05,2]
[394865734,1764030639049,-396.3943016,8.22e-05,2]
[394865735,1764030639059,-153.0,8.22e-05,2]
[394865736,1764030639069,-301.3663093,8.22e-05,2]
[394865737,1764030639079,-300.1358576,8.22e-05,2]
[394865738,1764030639089,-153.0,8.22e-05,2]
[394865739,1764030639099,-301.3663093,8.22e-05,2]
[394865740,1764030639109,-153.0,8.22e-05,2]
[394865741,1764030639119,-301.3663093,8.22e-05,2]
[394865742,1764030639129,-153.0,8.22e-05,2]
[394865743,1764030639139,-500.0,8.22e-05,2]
[394865744,1764030639149,-301.288988,8.22e-05,2]
[394865745,1764030639158,-153.0,8.22e-05,2]
[394865746,1764030639169,-153.0,8.22e-05,2]
[394865747,1764030639180,-301.3663093,8.22e-05,2]
[394865748,1764030639190,-301.3663093,8.22e-05,2]
[394865749,1764030639199,-153.0,8.22e-05,2]
[394865750,1764030639209,-153.0,8.27e-05,2]
[394865751,1764030639426,-500.0,8.272e-05,2]
[394865752,1764030639436,-298.23484068,8.272e-05,2]
[394865753,1764030639445,-500.0,8.272e-05,2]
[394865754,1764030639454,-500.0,8.272e-05,2]
[394865755,1764030639463,-500.0,8.272e-05,2]
[394865756,1764030639472,-500.0,8.272e-05,2]
[394865757,1764030639481,-500.0,8.272e-05,2]
[394865758,1764030639490,-500.0,8.272e-05,2]
[394865759,1764030639499,-151.0,8.272e-05,2]
[394865760,1764030639508,-151.0,8.272e-05,2]
[394865761,1764030639517,-151.0,8.272e-05,2]
[394865762,1764030639526,-500.0,8.272e-05,2]
[394865763,1764030639535,-151.0,8.272e-05,2]
[394865764,1764030639544,-500.0,8.272e-05,2]
[394865765,1764030639553,-151.0,8.272e-05,2]
[394865766,1764030639563,-500.0,8.272e-05,2]
[394865767,1764030639576,-151.0,8.272e-05,2]
[394865768,1764030639585,-500.0,8.272e-05,2]
[394865769,1764030639595,-500.0,8.272e-05,2]
[394865770,1764030639604,-500.0,8.272e-05,2]
[394865771,1764030639615,-222.32907209,8.272e-05,2]
[394865772,1764030639624,-500.0,8.272e-05,2]
[394865773,1764030639634,-500.0,8.272e-05,2]
[394865774,1764030639644,-500.0,8.272e-05,2]
[394865775,1764030639653,-151.0,8.272e-05,2]
[394865776,1764030639662,-500.0,8.272e-05,2]
[394865777,1764030639672,-153.0,8.28e-05,2]
[394865778,1764030639682,-153.0,8.28e-05,2]
[394865779,1764030639692,-153.0,8.28e-05,2]
[394865780,1764030639702,-153.0,8.28e-05,2]
[394865781,1764030639711,-153.0,8.28e-05,2]
[394865782,1764030639721,-153.0,8.28e-05,2]
[394865783,1764030639731,-153.0,8.28e-05,2]
[394865784,1764030639740,-153.0,8.28e-05,2]
[394865785,1764030639750,-153.0,8.31e-05,2]
[394865786,1764030639759,-153.0,8.31e-05,2]
[394865787,1764030639768,-500.0,8.409e-05,2]
[394865788,1764030639778,-500.0,8.409e-05,2]
[394865789,1764030639788,-500.0,8.409e-05,2]
[394865790,1764030639798,-500.0,8.409e-05,2]
[394865791,1764030639808,-500.0,8.409e-05,2]
[394865792,1764030639817,-500.0,8.409e-05,2]
[394865793,1764030639827,-500.0,8.409e-05,2]
[394865794,1764030639836,-151.0,8.409e-05,2]
[394865795,1764030639846,-151.0,8.409e-05,2]
[394865796,1764030639856,-151.0,8.409e-05,2]
[394865797,1764030639865,-500.0,8.409e-05,2]
[394865798,1764030639876,-151.0,8.409e-05,2]
[394865799,1764030639886,-500.0,8.409e-05,2]
[394865800,1764030639896,-151.0,8.409e-05,2]
[394865801,1764030639906,-500.0,8.409e-05,2]
[394865802,1764030639916,-151.0,8.409e-05,2]
[394865803,1764030639925,-500.0,8.409e-05,2]
[394865804,1764030639936,-500.0,8.409e-05,2]
[394865805,1764030639946,-500.0,8.409e-05,2]
[394865806,1764030639955,-500.0,8.409e-05,2]
[394865807,1764030639965,-500.0,8.409e-05,2]
[394865808,1764030639975,-500.0,8.409e-05,2]
[394865809,1764030639984,-276.42411402,8.409e-05,2]
[394865810,1764030639993,-500.0,8.409e-05,2]
[394865811,1764030640003,-153.0,8.44e-05,2]
[394865812,1764030640011,-153.0,8.44e-05,2]
[394865813,1764030640022,-2250.2808874,8.444e-05,2]
[394865814,1764030640032,-500.0,8.494e-05,2]
[394865815,1764030640041,-2250.2808874,8.496e-05,2]
[394865816,1764030640051,-353.36441271,8.508e-05,2]
[394865817,1764030640060,-160.0,8.508e-05,2]
[394865818,1764030640070,-160.0,8.508e-05,2]
[394865819,1764030640080,-420.0,8.542e-05,2]
[394865820,1764030640091,-357.0,8.542e-05,2]
[394865821,1764030640101,-500.0,8.546e-05,2]
[394865822,1764030640111,-500.0,8.546e-05,2]
[394865823,1764030640120,-500.0,8.546e-05,2]
[394865824,1764030640130,-272.12421782,8.546e-05,2]
[394865825,1764030640139,-500.0,8.546e-05,2]
[394865826,1764030640148,-500.0,8.546e-05,2]
[394865828,1764030640158,-170.0,8.546e-05,2]
[394865829,1764030640167,-151.0,8.546e-05,2]
[394865830,1764030640176,-229.62164398,8.546e-05,2]
[394865831,1764030640186,-176.30880586,8.546e-05,2]
[394865832,1764030640196,-500.0,8.546e-05,2]
[394865833,1764030640205,-207.7996926,8.546e-05,2]
[394865834,1764030640215,-500.0,8.546e-05,2]
[394865835,1764030640224,-284.92363098,8.546e-05,2]
[394865836,1764030640233,-500.0,8.546e-05,2]
[394865837,1764030640242,-153.05862465,8.546e-05,2]
[394865838,1764030640252,-500.0,8.546e-05,2]
[394865839,1764030640262,-500.0,8.546e-05,2]
[394865840,1764030640271,-500.0,8.546e-05,2]